[Event "FIDE WCCC U12 2018"]
[Site "Santiago de Compostela"]
[Date "2018.11.15"]
[Round "11"]
[White "Clasby, Derek"]
[Black "Deng Yu Dong Michael"]
[Result "0-1"]
[ECO "B36"]
[WhiteElo "2087"]
[BlackElo "1863"]
[Annotator "NA"]
[PlyCount "110"]
[EventDate "2018.11.04"]
[EventType "swiss"]
[EventCountry "ESP"]
[SourceTitle "playchess.com"]
[Source "ChessBase"]
[SourceQuality "1"]
[TimeControl "40/5400+30:1800+30"]

1. e4 {[%emt 0:00:00]} c5 {[%emt 0:00:00]} 2. Nf3 {[%emt 0:00:00]} Nc6 {[%emt 0:00:00]} 3. d4 {[%emt 0:00:01]} cxd4 {[%emt 0:00:03]} 4. Nxd4 {[%emt 0:00:09]} g6 {[%emt 0:00:03]} 5. c4 {[%emt 0:00:26]} Nf6 {[%emt 0:00:57]} 6. Nc3 {[%emt 0:00:14]} d6 {[%emt 0:00:15]} 7. f3 {[%emt 0:00:38]} Nxd4 {[%emt 0:01:58]} 8. Qxd4 {[%emt 0:00:10]} Bg7 {[%emt 0:00:20]} 9. Be3 {[%emt 0:00:15]} O-O {[%emt 0:01:12]} 10. Qd2 {[%emt 0:01:16]} a5 {[%emt 0:02:28]} 11. b3 {[%emt 0:03:53]} Bd7 {[%emt 0:05:18]} 12. Be2 {[%emt 0:01:58]} Bc6 {[%emt 0:01:43]} 13. O-O {[%emt 0:00:19]} Nd7 {[%emt 0:01:29]} 14. Rab1 {[%emt 0:03:08]} Nc5 {[%emt 0:02:37]} 15. a3 {[%emt 0:05:08] LiveBook: 7 Games B39: Sicilian: Maroczy Bind with 5...Bg7 and 7...Ng4} (15. Rfd1 Be5 16. Qe1 Qc7 17. Nd5 Bxd5 18. cxd5 Rfc8 19. Rdc1 Qb6 20. Qd1 Bf4 21. Qd4 Bxe3+ 22. Qxe3 Na4 23. Qxb6 Nxb6 {½-½ (37) Wojtaszek,R (2701)-Lenic,L (2621) Legnica 2013}) 15... Qc7 {[%emt 0:07:41]} 16. Rfc1 $146 {[%emt 0:00:51]} (16. Rfd1 $14) ({Predecessor:} 16. Bd1 Rfc8 17. b4 axb4 18. axb4 Ra3 19. Rc1 Na4 20. Nb1 Ra1 21. Bd4 Bxd4+ 22. Qxd4 Ra2 23. Bb3 e5 24. Qa7 Ra1 25. b5 Nc5 {½-½ (25) Parvanyan,A (2364)-Kaid,A (2278) Germany 2017}) 16... a4 {[%emt 0:06:45]} 17. bxa4 {[%emt 0:08:48]} Nxa4 {[%emt 0:03:11]} 18. Nd5 {[%emt 0:01:18]} Qd7 {[%emt 0:12:08]} 19. Bd1 {[%emt 0:06:55]} Bxd5 {[%emt 0:06:59]} 20. cxd5 {[%emt 0:01:51]} Rfc8 {[%emt 0:02:10]} 21. Bxa4 {[%emt 0:11:59]} Rxa4 {[%emt 0:05:12]} 22. Rxc8+ {[%emt 0:02:08]} Qxc8 {[%emt 0:00:15]} 23. Rc1 {[%emt 0:02:15]} Qa8 {[%emt 0:02:53]} 24. Qc2 {[%emt 0:02:17]} h5 {[%emt 0:01:09]} 25. Qc8+ {[%emt 0:03:44]} Kh7 {[%emt 0:01:28]} 26. Qxa8 {[%emt 0:01:33]} Rxa8 {[%emt 0:00:05]} 27. Bg5 {[%emt 0:06:05]} Bd4+ {[%emt 0:03:52]} 28. Kf1 {[%emt 0:00:09]} f6 {[%emt 0:00:45]} 29. Bd2 {[%emt 0:01:16]} Bc5 {[%emt 0:07:15]} 30. Bb4 {[%emt 0:01:48]} b6 {[%emt 0:00:55]} 31. Rb1 {[%emt 0:01:35]} Kg7 {[%emt 0:00:56]} 32. Bxc5 {[%emt 0:04:44]} bxc5 {[%emt 0:00:37]} 33. Ra1 {[%emt 0:00:39]} Ra4 {[%emt 0:00:42]} 34. Ke2 {[%emt 0:00:07]} f5 {[%emt 0:01:33]} 35. exf5 {[%emt 0:01:15]} gxf5 {[%emt 0:00:42]} 36. Kd3 {[%emt 0:03:03]} Kf6 {[%emt 0:02:40]} 37. Kc3 {[%emt 0:01:46]} Ke5 {[%emt 0:05:01]} 38. Kb3 {[%emt 0:00:33]} Rd4 {[%emt 0:00:54]} (38... Rh4 $17 39. a4 Rxh2) 39. Re1+ {[%emt 0:02:56]} Kxd5 {[%emt 0:00:07]} 40. Rxe7 {[%emt 0:00:00]} Rd3+ {[%emt 0:00:00]} 41. Ka4 {[%emt 0:01:44]} Rd2 {[%emt 0:02:34]} 42. Rg7 {[%emt 0:03:29]} Kc4 $19 {[%emt 0:02:11]} 43. g4 {[%emt 0:06:19]} fxg4 {[%emt 0:02:46]} 44. fxg4 {[%emt 0:00:08]} Rg2 {[%emt 0:07:53]} 45. Rg6 {[%emt 0:05:46]} d5 {[%emt 0:00:53]} 46. gxh5 {[%emt 0:00:03]} Rxh2 {[%emt 0:00:12]} 47. Rg1 {[%emt 0:04:59]} d4 {[%emt 0:01:41]} 48. Rc1+ {[%emt 0:03:22]} Kd5 {[%emt 0:00:24]} 49. h6 {[%emt 0:01:10]} c4 {[%emt 0:01:36]} 50. Rg1 {[%emt 0:00:39]} Rxh6 {[%emt 0:04:06]} 51. Rg5+ {[%emt 0:00:11]} Ke4 {[%emt 0:00:08]} 52. Kb4 {[%emt 0:00:23]} c3 {[%emt 0:01:21]} 53. Kb3 {[%emt 0:02:58]} Rc6 {[%emt 0:00:50]} 54. Rg4+ {[%emt 0:00:13]} Ke3 {[%emt 0:00:27]} 55. Rg3+ {[%emt 0:00:48]} Kf4 {[%emt 0:00:21]} 0-1

[Event "FIDE WCCC U12 2018"]
[Site "Santiago de Compostela"]
[Date "2018.11.15"]
[Round "11"]
[White "Damjanovic, Vuk"]
[Black "Tugstumur, Yesuntumur"]
[Result "0-1"]
[ECO "B47"]
[WhiteElo "2053"]
[BlackElo "2331"]
[Annotator "NA"]
[PlyCount "92"]
[EventDate "2018.11.04"]
[EventType "swiss"]
[EventCountry "ESP"]
[SourceTitle "playchess.com"]
[Source "ChessBase"]
[SourceQuality "1"]
[TimeControl "40/5400+30:1800+30"]

1. e4 {[%emt 0:00:00]} (1. d4 c5 2. c3 {Vorgänger:} e6 $146 3. Nf3 Nc6 4. a3 Nf6 5. Bf4 Qb6 6. Ra2 a5 7. e3 a4 8. Nbd2 d5 9. Bd3 Nh5 10. Be5 Nxe5 11. Nxe5 Nf6 {½-½ (19) Bryzgalin,K (2424)-Gutman,G (2476) Pardubice 2018}) 1... c5 {[%emt 0:00:00]} 2. Nf3 {[%emt 0:00:00]} e6 {[%emt 0:00:00]} 3. d4 {[%emt 0:00:02]} cxd4 {[%emt 0:00:00]} 4. Nxd4 {[%emt 0:00:06]} Nc6 {[%emt 0:00:00]} 5. Nc3 {[%emt 0:00:27]} Qc7 {[%emt 0:00:01]} 6. g3 {[%emt 0:00:56]} a6 {[%emt 0:00:31]} 7. Bg2 {[%emt 0:01:19]} Nf6 {[%emt 0:01:50]} 8. O-O {[%emt 0:00:52]} h5 {[%emt 0:09:06]} 9. h3 {[%emt 0:03:18]} Bc5 {[%emt 0:12:47]} 10. Nb3 {[%emt 0:09:15]} Be7 {[%emt 0:01:47]} 11. Qe2 {[%emt 0:16:26]} d6 {[%emt 0:03:19]} 12. f4 {[%emt 0:11:45]} b5 {[%emt 0:13:00]} 13. Be3 {[%emt 0:07:41]} Bb7 {[%emt 0:02:12]} 14. Qf2 {[%emt 0:01:20]} O-O 15. Bf3 {[%emt 0:07:09]} Rac8 {[%emt 0:15:43]} 16. g4 {[%emt 0:05:32]} b4 {[%emt 0:01:31]} 17. Na4 {[%emt 0:01:29]} Nb8 {[%emt 0:06:55]} 18. Nb6 {[%emt 0:03:14]} Rcd8 {[%emt 0:04:28]} 19. Qg2 {[%emt 0:04:42]} d5 {[%emt 0:03:39]} 20. e5 {[%emt 0:00:26]} Nh7 {[%emt 0:01:12]} 21. Bd4 {[%emt 0:11:41]} Nc6 {[%emt 0:07:47]} 22. Bf2 {[%emt 0:00:11]} a5 {[%emt 0:02:04]} 23. Na4 {[%emt 0:03:28]} Ba6 {[%emt 0:00:33]} 24. Bb6 {[%emt 0:04:57]} Bxf1 {[%emt 0:00:52]} 25. Rxf1 {[%emt 0:00:11]} Qb8 {[%emt 0:00:11]} 26. Bxd8 {[%emt 0:00:13]} Rxd8 {[%emt 0:00:04]} 27. Nc1 {[%emt 0:02:07]} hxg4 {[%emt 0:01:47]} 28. hxg4 {[%emt 0:00:48]} g5 {[%emt 0:01:05]} 29. f5 {[%emt 0:02:57]} Nxe5 {[%emt 0:00:31]} 30. fxe6 {[%emt 0:00:08]} fxe6 {[%emt 0:00:04]} 31. Be2 {[%emt 0:00:34]} Kg7 {[%emt 0:02:56]} 32. Nd3 {[%emt 0:00:00]} Nxd3 33. Bxd3 {[%emt 0:00:00]} Nf6 {[%emt 0:02:21]} 34. Rf3 {[%emt 0:03:09]} Rh8 {[%emt 0:00:25]} 35. Rh3 {[%emt 0:00:15]} Rxh3 {[%emt 0:00:04]} 36. Qxh3 {[%emt 0:00:04]} Qf4 {[%emt 0:00:08]} 37. Kg2 {[%emt 0:00:31]} Bd6 {[%emt 0:02:07]} 38. b3 {[%emt 0:00:13]} Ne4 {[%emt 0:01:04]} 39. Bxe4 {[%emt 0:00:00]} Qxe4+ {[%emt 0:00:00]} 40. Qf3 {[%emt 0:00:00]} Qxc2+ {[%emt 0:00:00]} 41. Qf2 {[%emt 0:01:20]} Qxf2+ {[%emt 0:01:06]} 42. Kxf2 {[%emt 0:00:11]} Kf6 {[%emt 0:00:01]} 43. Nb2 {[%emt 0:00:09]} Ke5 {[%emt 0:00:07]} 44. Ke3 {[%emt 0:00:10]} Bc5+ {[%emt 0:00:02]} 45. Kf3 {[%emt 0:00:08]} Kd4 {[%emt 0:00:04]} 46. Ke2 {[%emt 0:00:11]} e5 {[%emt 0:01:06]} 0-1

[Event "FIDE WCCC U12 2018"]
[Site "Santiago de Compostela"]
[Date "2018.11.15"]
[Round "11"]
[White "Xu, Arthur"]
[Black "Milikow, Elie"]
[Result "0-1"]
[ECO "B33"]
[WhiteElo "2034"]
[BlackElo "2173"]
[Annotator "NA"]
[PlyCount "106"]
[EventDate "2018.11.04"]
[EventType "swiss"]
[EventCountry "ESP"]
[SourceTitle "playchess.com"]
[Source "ChessBase"]
[SourceQuality "1"]
[TimeControl "40/5400+30:1800+30"]

{[%evp 8,103,20,18,33,17,32767,32767,33,23,32767,32767,47,32767,32767,32767,30,30,32767,33,40,32767,46,33,21,16,27,6,39,-1,32767,32767,32767,32767,32767,-318,32767,32767,32767,32767,32767,32767,-454,32767,-266,-265,-202,32767,-208,32767,32767,-265,-268,-253,-239,-277,-260,-331,32767,-283,32767,-323,-81,-340,-376,-372,-377,32767,-447,-510,-593,-550,-837,-493,32767,32767,-1188,-740,32767,32767,-5815,-12844,-29974,32767,32767,32767,32767,32767,32767,32767,32767,32767,32767,32767,32767,32767,32767,-29993]} 1. e4 {[%emt 0:00:00]} c5 {[%emt 0:00:00]} 2. Nf3 {[%emt 0:00:00]} Nc6 {[%emt 0:00:00]} 3. d4 {[%emt 0:00:00]} cxd4 {[%emt 0:00:00]} 4. Nxd4 {[%emt 0:00:00]} Nf6 {[%emt 0:00:00]} 5. Nc3 {[%emt 0:00:00]} e5 {[%emt 0:00:05]} 6. Ndb5 {[%emt 0:00:04]} d6 {[%emt 0:00:10]} 7. Bg5 {[%emt 0:00:08]} a6 {[%emt 0:00:10]} 8. Na3 {[%emt 0:00:06]} b5 {[%emt 0:00:08]} 9. Bxf6 {[%emt 0:00:08]} gxf6 {[%emt 0:00:12]} 10. Nd5 {[%emt 0:00:07]} f5 {[%emt 0:00:21]} 11. c3 {[%emt 0:00:16]} Bg7 $1 {[%emt 0:01:33]} 12. exf5 {[%emt 0:00:10]} Bxf5 {[%emt 0:00:48]} 13. Nc2 {[%emt 0:00:16]} O-O {[%emt 0:01:06]} 14. Nce3 {[%emt 0:00:12]} Be6 {[%emt 0:00:51]} 15. g3 {[%emt 0:00:05]} f5 {[%emt 0:02:07]} 16. Bg2 {[%emt 0:00:36]} Rc8 {[%emt 0:03:47]} 17. Qh5 {[%emt 0:11:58] B33: Sicilian: Pelikan and Sveshnikov Variations} Ne7 {[%emt 0:14:48] LiveBook: 6 Games} (17... b4 18. O-O bxc3 19. bxc3 Ne7 20. Rad1 e4 21. c4 Nxd5 22. cxd5 Bd7 23. Rc1 Bc3 24. Rc2 Qf6 {1-0 (36) Kulkarni,C (2336)-Mozharov,M (2542) Pardubice 2018}) 18. Rd1 {[%emt 0:02:17]} e4 {[%emt 0:06:44]} 19. g4 $146 {[%emt 0:07:54]} ({Predecessor:} 19. Rd2 Nxd5 20. Nxd5 Qe8 {0-1 (20) Schauer,J (2242)-Lyukmanov,V (2380) ICCF email 2002}) 19... Nxd5 {[%emt 0:06:38]} 20. Nxd5 {[%emt 0:00:24]} Rc5 {[%emt 0:02:55]} 21. Nf4 {[%emt 0:02:27]} Bf7 {[%emt 0:06:10]} 22. Qh3 {[%emt 0:01:43]} fxg4 {[%emt 0:05:51]} 23. Qxg4 {[%emt 0:07:05]} Rg5 {[%emt 0:03:09]} 24. Qh4 {[%emt 0:02:19]} Bxa2 {[%emt 0:14:54]} 25. Bf1 {[%emt 0:16:19]} Qf6 {[%emt 0:00:43]} (25... Bb3 $142 26. Rc1 h6) 26. Nh3 {[%emt 0:04:19]} Rd5 {[%emt 0:01:32]} 27. Qxf6 {[%emt 0:04:48]} Rxd1+ {[%emt 0:00:08]} ({Resist} 27... Rxf6 28. Ra1 $17) 28. Kxd1 {[%emt 0:00:10]} Rxf6 {[%emt 0:00:33]} 29. Bg2 {[%emt 0:08:43]} (29. Rg1 $142) 29... Bb3+ {[%emt 0:01:18]} 30. Ke2 {[%emt 0:01:04]} Bc4+ {[%emt 0:00:13]} 31. Ke3 {[%emt 0:01:29]} d5 {[%emt 0:01:32]} 32. f4 {[%emt 0:08:05]} Bf8 {[%emt 0:02:23]} 33. Kd4 {[%emt 0:01:52]} Rc6 {[%emt 0:02:21]} 34. Bf1 {[%emt 0:01:36]} Bg7+ {[%emt 0:00:05]} 35. Ke3 {[%emt 0:00:05]} Bxf1 {[%emt 0:01:28]} 36. Rxf1 {[%emt 0:00:13] [#]} Bxc3 $1 {[%emt 0:00:52]} 37. Rg1+ {[%emt 0:01:53]} Kf8 {[%emt 0:00:30]} 38. bxc3 {[%emt 0:00:48]} Rxc3+ {[%emt 0:00:05]} 39. Kd4 {[%emt 0:00:12]} Rxh3 {[%emt 0:00:08]} 40. Kxd5 {[%emt 0:00:00]} e3 {[%emt 0:00:00]} 41. Re1 {[%emt 0:00:39]} Kf7 {[%emt 0:02:46]} 42. Kc5 {[%emt 0:01:31]} Kf6 {[%emt 0:00:58]} 43. Kb6 {[%emt 0:00:06]} Kf5 {[%emt 0:01:28]} 44. Kxa6 {[%emt 0:00:15]} Kxf4 {[%emt 0:00:06]} 45. Kxb5 {[%emt 0:00:08]} Kf3 {[%emt 0:00:10]} 46. Kc4 {[%emt 0:00:08]} e2 {[%emt 0:00:09]} 47. Kd3 {[%emt 0:00:13]} Kf2+ {[%emt 0:00:04]} 48. Kd2 {[%emt 0:00:06]} Rd3+ {[%emt 0:00:03]} 49. Kxd3 {[%emt 0:00:06]} Kxe1 {[%emt 0:00:04]} 50. h4 {[%emt 0:00:06]} Kf2 {[%emt 0:00:06]} 51. h5 {[%emt 0:00:04]} e1=Q {[%emt 0:00:06]} 52. Kc4 {[%emt 0:00:05]} Qd2 {[%emt 0:00:08]} 53. h6 {[%emt 0:00:04]} Ke3 {[%emt 0:00:04] Kd4+} 0-1

[Event "FIDE WCCC U12 2018"]
[Site "Santiago de Compostela"]
[Date "2018.11.15"]
[Round "11"]
[White "Stalmach, Richard"]
[Black "Wang, Jason"]
[Result "0-1"]
[ECO "D20"]
[WhiteElo "2028"]
[BlackElo "2229"]
[Annotator "NA"]
[PlyCount "46"]
[EventDate "2018.11.04"]
[EventType "swiss"]
[EventCountry "ESP"]
[SourceTitle "playchess.com"]
[Source "ChessBase"]
[SourceQuality "1"]
[TimeControl "40/5400+30:1800+30"]

{[%evp 8,37,58,66,32767,32767,32767,32767,48,32767,32767,32767,32767,32767,56,40,59,44,49,32767,61,28,36,23,44,-243,-248,32767,-239,-232,-237,-261]} 1. d4 {[%emt 0:00:00]} d5 {[%emt 0:00:00]} 2. c4 {[%emt 0:00:00]} dxc4 {[%emt 0:00:00]} 3. e4 {[%emt 0:00:00]} Nf6 {[%emt 0:00:00]} 4. e5 {[%emt 0:00:00]} Nd5 {[%emt 0:00:00]} 5. Bxc4 {[%emt 0:00:00]} Nb6 {[%emt 0:00:00]} 6. Bd3 {[%emt 0:00:02]} Nc6 {[%emt 0:00:00]} 7. Ne2 {[%emt 0:00:03]} Bg4 {[%emt 0:00:08]} 8. f3 {[%emt 0:00:03]} Be6 {[%emt 0:00:06]} 9. Nbc3 {[%emt 0:00:06]} Qd7 {[%emt 0:01:09]} 10. Ne4 {[%emt 0:00:04]} Bd5 {[%emt 0:00:05]} 11. Nc5 {[%emt 0:00:03]} Qc8 $1 {[%emt 0:00:02]} 12. a3 {[%emt 0:00:21]} e6 {[%emt 0:00:34]} 13. Qc2 {[%emt 0:00:03]} Bxc5 {[%emt 0:02:15]} 14. Qxc5 {[%emt 0:00:12] LiveBook: 31 Games} Qd7 {[%emt 0:00:19]} 15. O-O {[%emt 0:03:31]} a6 {[%emt 0:00:18]} 16. Be3 $2 {[%emt 0:08:56] [#]} (16. Qc3 $14 {behält die Oberhand.}) 16... Nc4 $1 {[%emt 0:02:16]} 17. Bxc4 {[%emt 0:11:05]} b6 {[%emt 0:00:07]} 18. Bxd5 {[%emt 0:00:36]} bxc5 {[%emt 0:00:06]} 19. Be4 $19 {[%emt 0:04:31]} Rb8 {[%emt 0:09:09]} 20. Rac1 {[%emt 0:00:43]} Rxb2 {[%emt 0:02:41]} 21. Rxc5 {[%emt 0:00:38]} Ne7 {[%emt 0:00:44]} 22. Rfc1 {[%emt 0:00:48]} Rxe2 {[%emt 0:00:24]} 23. Rxc7 {[%emt 0:00:11]} Rxe3 {[%emt 0:00:14]} 0-1

[Event "FIDE WCCC U12 2018"]
[Site "Santiago de Compostela"]
[Date "2018.11.15"]
[Round "11"]
[White "Laux, Dominik"]
[Black "Grebnev, Aleksey"]
[Result "1-0"]
[ECO "A45"]
[WhiteElo "1973"]
[BlackElo "2151"]
[Annotator "NA"]
[PlyCount "79"]
[EventDate "2018.11.04"]
[EventType "swiss"]
[EventCountry "ESP"]
[SourceTitle "playchess.com"]
[Source "ChessBase"]
[SourceQuality "1"]
[TimeControl "40/5400+30:1800+30"]

{[%evp 20,79,26,18,10,3,33,10,3,28,28,27,28,32767,32767,32767,32767,138,32767,32767,191,32767,32767,216,32767,32767,239,32767,254,32767,32767,400,439,32767,460,483,32767,32767,32767,715,673,768,612,824,793,833,767,554,493,562,1018,32767,32767,871,879,32767,32767,2638,32767,32767,32767,29990]} 1. d4 {[%emt 0:00:00]} Nf6 {[%emt 0:00:00]} 2. Bg5 {[%emt 0:00:04]} g6 {[%emt 0:00:00]} 3. Bxf6 {[%emt 0:00:33]} exf6 {[%emt 0:00:03]} 4. g3 {[%emt 0:00:29]} Bg7 {[%emt 0:00:08]} 5. Bg2 {[%emt 0:00:05]} O-O {[%emt 0:00:10]} 6. e3 {[%emt 0:00:21]} f5 {[%emt 0:00:31]} 7. Ne2 {[%emt 0:00:38]} d6 {[%emt 0:00:26]} 8. O-O {[%emt 0:01:05]} Nd7 {[%emt 0:00:25]} 9. c4 {[%emt 0:01:06]} Nf6 {[%emt 0:01:09]} 10. Nbc3 {[%emt 0:00:51]} Rb8 {[%emt 0:01:17] A45: Trompowsky Attack} (10... Qe7 11. Nd5 Qd8 12. Nxf6+ Bxf6 13. Qd2 c6 14. b4 Bd7 15. Rab1 Rb8 16. a4 Re8 17. Rfd1 b6 18. b5 {½-½ (38) Vitiugov,N (2691)-Svidler,P (2747) St Petersburg 2012}) 11. Qa4 $146 {[%emt 0:08:14]} ({Predecessor:} 11. b4 h5 12. Qa4 a6 13. b5 Bd7 14. Qb4 axb5 15. cxb5 h4 16. Rac1 hxg3 17. hxg3 Re8 18. a4 {1-0 (34) Tu,H (2499)-Alzate,D (2427) Mallorca 2004}) 11... a6 {[%emt 0:02:34]} 12. b4 {[%emt 0:02:57]} Be6 {[%emt 0:03:30]} 13. b5 {[%emt 0:03:36]} axb5 {[%emt 0:01:15]} 14. cxb5 {[%emt 0:01:06]} Re8 {[%emt 0:00:43]} 15. Rfc1 {[%emt 0:05:45]} g5 {[%emt 0:06:21]} 16. Qc2 {[%emt 0:07:04]} Qe7 {[%emt 0:02:49]} 17. a4 {[%emt 0:06:58]} Bd7 {[%emt 0:02:30] [#]} 18. a5 $1 {[%emt 0:05:48]} c6 {[%emt 0:02:25]} 19. a6 {[%emt 0:03:27]} d5 {[%emt 0:02:06]} 20. bxc6 {[%emt 0:02:36]} bxc6 {[%emt 0:01:23] [#]} 21. Na4 $1 {[%emt 0:03:11]} Ra8 {[%emt 0:31:19]} 22. Nb6 {[%emt 0:03:21]} Ra7 {[%emt 0:05:00]} 23. Nxd7 {[%emt 0:01:03]} Qxd7 {[%emt 0:02:22]} 24. Qxc6 {[%emt 0:01:19]} Rea8 {[%emt 0:00:56]} 25. Qxd7 {[%emt 0:03:08]} Rxd7 {[%emt 0:01:42]} 26. Rc6 {[%emt 0:01:30]} Ne4 {[%emt 0:02:23]} 27. Bxe4 {[%emt 0:01:13]} dxe4 {[%emt 0:02:37]} 28. Nc3 {[%emt 0:01:57]} f4 {[%emt 0:01:23]} 29. Nb5 {[%emt 0:01:32]} fxe3 {[%emt 0:03:50]} 30. fxe3 {[%emt 0:00:01]} f5 {[%emt 0:00:13]} 31. Rb6 {[%emt 0:01:54]} f4 {[%emt 0:00:30]} 32. gxf4 {[%emt 0:00:33]} gxf4 {[%emt 0:00:01]} 33. Kf2 {[%emt 0:01:09]} fxe3+ {[%emt 0:00:07]} 34. Kxe3 {[%emt 0:00:04]} Raa7 {[%emt 0:00:20]} 35. Ra4 {[%emt 0:00:36]} Ra8 {[%emt 0:00:09]} 36. a7 {[%emt 0:00:16]} Rdd8 {[%emt 0:00:05]} 37. d5 {[%emt 0:01:45]} Rxd5 {[%emt 0:00:27]} 38. Rb8+ {[%emt 0:00:11]} Kf7 {[%emt 0:00:16]} 39. Rxa8 {[%emt 0:00:15]} Rxb5 {[%emt 0:00:05]} 40. Rd8 {[%emt 0:00:00]} 1-0

[Event "FIDE WCCC U12 2018"]
[Site "Santiago de Compostela"]
[Date "2018.11.15"]
[Round "11"]
[White "Sahakyan, Aleks"]
[Black "Flores Quillas, Diego Saul Rodri"]
[Result "0-1"]
[ECO "D45"]
[WhiteElo "1951"]
[BlackElo "2205"]
[Annotator "ChessBase"]
[PlyCount "93"]
[EventDate "2018.11.04"]
[EventType "swiss"]
[EventCountry "ESP"]
[SourceTitle "playchess.com"]
[Source "ChessBase"]
[SourceQuality "1"]
[TimeControl "40/5400+30:1800+30"]

1. d4 {[%emt 0:00:00]} d5 {[%emt 0:00:00]} 2. c4 {[%emt 0:00:00]} c6 {[%emt 0:00:00]} 3. Nc3 {[%emt 0:00:00]} Nf6 {[%emt 0:00:03]} 4. e3 {[%emt 0:00:00]} e6 {[%emt 0:00:12]} 5. Nf3 {[%emt 0:00:03]} Nbd7 {[%emt 0:00:03]} 6. Qc2 {[%emt 0:00:06]} Bd6 {[%emt 0:00:24]} 7. g4 {[%emt 0:00:30]} h6 {[%emt 0:00:55]} 8. Rg1 {[%emt 0:00:26]} e5 {[%emt 0:12:33]} 9. h4 {[%emt 0:04:42]} exd4 {[%emt 0:18:40]} 10. Nxd4 {[%emt 0:00:20]} Ne5 {[%emt 0:00:05]} 11. g5 {[%emt 0:02:05]} hxg5 {[%emt 0:01:09]} 12. hxg5 {[%emt 0:00:11]} Nfg4 {[%emt 0:00:02]} 13. f4 {[%emt 0:08:33]} Nxc4 {[%emt 0:03:20]} 14. Bxc4 {[%emt 0:03:09]} dxc4 {[%emt 0:00:06]} 15. Qe2 {[%emt 0:10:31]} Rh2 {[%emt 0:11:21]} 16. Qxc4 {[%emt 0:06:28]} Qe7 {[%emt 0:00:24]} 17. e4 {[%emt 0:10:09]} Bd7 {[%emt 0:01:34]} 18. Bd2 {[%emt 0:02:52]} Rxd2 {[%emt 0:00:25]} 19. Kxd2 {[%emt 0:00:49]} Bxf4+ {[%emt 0:00:06]} 20. Ke2 {[%emt 0:00:36]} Ne5 {[%emt 0:00:48]} 21. Qa4 {[%emt 0:02:23]} b5 {[%emt 0:07:00]} 22. Qc2 {[%emt 0:06:13]} Qc5 {[%emt 0:01:34]} 23. Rad1 {[%emt 0:09:06]} O-O-O {[%emt 0:01:30]} 24. Nb1 {[%emt 0:01:29]} Qxc2+ {[%emt 0:03:45]} 25. Nxc2 {[%emt 0:00:02]} Bg4+ {[%emt 0:00:01]} 26. Rxg4 {[%emt 0:00:03]} Rxd1 {[%emt 0:00:01]} 27. Kxd1 {[%emt 0:01:12]} Nxg4 {[%emt 0:00:03]} 28. Nd4 {[%emt 0:00:02]} Kd7 {[%emt 0:00:27]} 29. Nf3 {[%emt 0:00:35]} Ne5 {[%emt 0:00:20]} 30. Nxe5+ {[%emt 0:00:48]} Bxe5 {[%emt 0:00:02]} 31. b3 {[%emt 0:00:00]} Bf4 {[%emt 0:00:12]} 32. g6 {[%emt 0:00:01]} fxg6 {[%emt 0:00:02]} 33. Nc3 {[%emt 0:00:01]} g5 34. Ke2 g4 {[%emt 0:00:29]} 35. Nd1 {[%emt 0:00:07]} Ke6 {[%emt 0:02:24]} 36. Nf2 {[%emt 0:00:01]} Ke5 {[%emt 0:00:22]} 37. Nxg4+ {[%emt 0:00:06]} Kxe4 {[%emt 0:00:05]} 38. Nf2+ {[%emt 0:00:01]} Kd4 {[%emt 0:00:21]} 39. Nd3 {[%emt 0:00:09]} g5 {[%emt 0:00:13]} 40. Nb4 {[%emt 0:00:00]} Kc5 {[%emt 0:00:00]} 41. Nd3+ {[%emt 0:00:27]} Kd5 {[%emt 0:03:06]} 42. Nb4+ {[%emt 0:00:05]} Kd6 {[%emt 0:00:03]} 43. Kf3 {[%emt 0:00:10]} c5 {[%emt 0:00:09]} 44. Nd3 {[%emt 0:00:28]} Kd5 {[%emt 0:00:05]} 45. Nxf4+ {[%emt 0:00:06]} gxf4 {[%emt 0:00:05]} 46. Kxf4 {[%emt 0:00:03]} Kd4 {[%emt 0:00:06]} 47. Kf3 {[%emt 0:00:07]} 0-1